Cogmind - Beta 15 @@@ ROGUE MODE // 2025.07.30 @ 09:35:21 Player: beans Result: Destroyed by G-50 Soldier with Heavy Laser Performance ------------- Evolutions (2) 1000 Regions Visited (3) 600 Robots Destroyed (67) 335 Value Destroyed (1635) 1635 Prototype IDs (3) 60 Alien Tech Used (0) 0 Bonus (22) 22 TOTAL SCORE: 3652 Bonus ------- High Alert Combat Kills 22 Cogmind --------- Core Integrity 0/550 Matter 23/300 Energy 81/100 System Corruption 0% Temperature Cool (9) Movement Core (350) Ox6 Location -8/Materials Parts ------- > --- POWER (1) -------- (None) > --- PROPULSION (3) --- (None) > --- UTILITY (4) ------ Large Storage Unit > --- WEAPON (3) ------- (None) > --- INVENTORY (15) --- Heavy Ion Engine Deuterium Engine Compact Matter Pod (0) Peak State ------------ > --- POWER ------------ Heavy Ion Engine > --- PROPULSION ------- VSS Leg VSS Leg VSS Leg > --- UTILITY ---------- Large Storage Unit Reactive Plating Authchip [Device] > --- WEAPON ----------- Improved Assault Rifle Improved Assault Rifle Rocket Launcher > --- INVENTORY -------- Deuterium Engine Spread Laser Spread Laser Ion Cannon Rocket Launcher Rocket Launcher Rocket Launcher [Rating: 29] Favorites ----------- Power Heavy Ion Engine Engine Heavy Ion Engine Propulsion VSS Leg Treads Light Treads Leg VSS Leg Flight Unit Improved VTOL Module Utility Large Storage Unit Storage Large Storage Unit Hackware Authchip [Device] Protection Reactive Plating Weapon Improved Assault Rifle Energy Gun Spread Laser Energy Cannon Ion Cannon Ballistic Gun Improved Assault Rifle Launcher Rocket Launcher Build | -11 -10 -9 -8 ------- Run | Yrd Mat Mat Mat Slots Evolved 4 | . . 2 2 Power . | . . . . Propulsion 1 | . . 1 . Utility 2 | . . 1 1 Weapon 1 | . . . 1 Parts Attached 22 | 3 5 9 5 Power 3 | 1 . 2 . Engine 3 | 1 . 2 . Core . | . . . . Reactor . | . . . . Propulsion 7 | 2 . 3 2 Treads 2 | 2 . . . Leg 4 | . . 3 1 Wheel . | . . . . Hover . | . . . . Flight 1 | . . . 1 Utility 3 | . 1 1 1 Device . | . . . . Storage 1 | . 1 . . Processor . | . . . . Hackware 1 | . . 1 . Protection 1 | . . . 1 Artifact . | . . . . Weapon 9 | . 4 3 2 Energy Gun 2 | . 2 . . Energy Cannon 1 | . . . 1 Ballistic Gun 2 | . . 2 . Ballistic Cannon . | . . . . Launcher 4 | . 2 1 1 Special Weapon . | . . . . Impact Weapon . | . . . . Slashing Weapon . | . . . . Piercing Weapon . | . . . . Special Melee Weapon . | . . . . Unidentified Prototypes 3 | . . 2 1 Parts Lost 17 | . 2 1 14 Power 1 | . 1 . . Propulsion 5 | . 1 1 3 Utility 2 | . . . 2 Weapon 9 | . . . 9 Highest Loss Streak 6 | . 1 1 6 To Critical Strikes . | . . . . Average Backups 5 | . 2 6 7 Power . | . . . 1 Propulsion . | . . . . Utility . | . . . . Weapon 4 | . 2 5 5 Tool/Special . | . . . . Unused Backups 1 | . . . 1 Power . | . . . . Propulsion . | . . . . Utility 1 | . . . 1 Weapon . | . . . . Tool/Special . | . . . . Average Slot Usage (%) 60 | . 54 73 55 Engine 6 | . 5 8 6 Treads 7 | . 21 1 . Leg 12 | . . 24 12 Storage 9 | . 9 11 9 Hackware 4 | . . 5 9 Protection 1 | . . . 3 Energy Gun 5 | . 6 7 2 Ballistic Gun 7 | . . 12 10 Launcher 4 | . 11 2 1 Peak Build Rating 29 | 3 8 24 29 Average Rating 13 | 2 5 18 18 On Entrance 7 | . 3 6 21 Naked Turns . | . . . . Heaviest Build 48 | 3 31 36 48 Greatest Support 40 | 40 40 36 36 Greatest Overweight (x) 9 | . 1 2 9 Average Overweight (x) . | . . . 1 Largest Inventory Capacity 15 | 5 15 15 15 Average Capacity 13 | 5 12 15 15 Most Carried 10 | 2 5 9 10 Average Carried 5 | . 2 6 7 Final Capacity 15 | 5 15 15 15 Final Carried 8 | . 4 8 3 Class Distribution -------------------- 97% | Mutant Dominant Class ---------------- Mutant | -10/Materials Mutant | -9/Materials Mutant | -8/Materials Resources | -11 -10 -9 -8 ----------- Run | Yrd Mat Mat Mat Matter Collected 1123 | 230 245 495 153 Remotely . | . . . . Salvage Created 1898 | . 412 727 759 Parts 110 | . 22 45 43 Haulers Intercepted 6 | . . 5 1 Recyclers Shooed 6 | . . 2 4 Parts Field Recycled . | . . . . Retrieved Matter . | . . . . Parts Self-Destructed . | . . . . Prevented . | . . . . Kills | -11 -10 -9 -8 ------- Run | Yrd Mat Mat Mat Combat Hostiles Destroyed 38 | . 7 13 18 Guns 14 | . 3 3 8 Cannons 2 | . . . 2 AOE 22 | . 4 10 8 Classes Destroyed 10 | . 5 3 2 Worker 5 | . 3 2 . Builder 4 | . . . 4 Hauler 6 | . . 5 1 Recycler 7 | . 3 2 2 Operator 1 | . . 1 . Watcher 6 | . 2 3 1 Swarmer 10 | . 3 4 3 Grunt 24 | . 4 7 13 Duelist 2 | . . 2 . Sentry 2 | . . . 2 Best Kill Streak 8 | . 8 6 4 Combat Bots Only 4 | . 4 4 4 Max Kills in Single Turn 3 | . 3 3 3 Gunslinging . | . . . . Exploded 3 | . 1 3 2 Melee . | . . . . Uniques/NPCs Destroyed . | . . . . Combat | -11 -10 -9 -8 -------- Run | Yrd Mat Mat Mat Hostile Shots Fired 196 | . 15 28 153 Missed 53 | . 5 6 42 Hits 143 | . 10 22 111 Melee 3 | . . 3 . Projectile 140 | . 10 19 111 Critical Strikes 7 | . . 1 6 Damage Taken 2857 | . 518 464 1875 Core 825 | . 203 59 563 Absorbed by Shields . | . . . . Ignored by Resistances 15 | . . . 15 Core Remaining (%) 67 | 100 18 85 . Volleys Fired 140 | . 22 44 74 Largest 3 | . 2 2 3 Hottest 130 | . 130 130 125 Shots Fired 227 | . 32 75 120 Gun 163 | . 13 61 89 Cannon 15 | . . . 15 Launcher 49 | . 19 14 16 Special . | . . . . Kinetic 113 | . . 55 58 Thermal 65 | . 13 6 46 Explosive 49 | . 19 14 16 Electromagnetic . | . . . . Robot Hit Streak 14 | . 2 14 12 Robot Miss Streak 10 | . 10 7 7 Penetration Max . | . . . . Secondary Targets 2 | . 1 1 . Max Gunslinging Chain 1 | . 1 1 . Shots Hit Robots 153 | . 14 51 88 Core Hits 164 | . 32 44 88 Critical Kills . | . . . . Critical Parts Destroyed . | . . . . Critical Strikes . | . . . . Melee Attacks . | . . . . Impact . | . . . . Slashing . | . . . . Piercing . | . . . . Sneak Attacks . | . . . . Combat Hostiles . | . . . . Follow-up Attacks . | . . . . Damage Inflicted 5917 | . 992 1646 3279 Guns 1839 | . 85 696 1058 Cannons 229 | . . . 229 Explosions 3849 | . 907 950 1992 Melee . | . . . . Ramming . | . . . . Kinetic 1283 | . . 641 642 Thermal 1373 | . 85 55 1233 Explosive 3261 | . 907 950 1404 Electromagnetic . | . . . . Impact . | . . . . Slashing . | . . . . Piercing . | . . . . Highest Corruption 7 | . 7 . . Average Corruption 5 | . 5 . . Corruption Purged . | . . . . Corruption Blocked . | . . . . Effects 9 | . 9 . . Message Errors 1 | . 1 . . Matter Fused 2 | . 2 . . Heat Flow Errors 1 | . 1 . . Data Loss (minor) 2 | . 2 . . Data Loss (major) 1 | . 1 . . Misfires 1 | . 1 . . Alerts 1 | . 1 . . Overload Shots . | . . . . Overflow Damage 251 | . 18 46 187 Projectiles . | . . . . Explosions 251 | . 18 46 187 Melee . | . . . . Knockbacks . | . . . . Impact . | . . . . Kinetic . | . . . . Secondary . | . . . . Self-Inflicted Damage 485 | . 141 164 180 Shots 16 | . 6 5 5 Rammed . | . . . . Targets Rammed . | . . . . Kicked . | . . . . Crushed . | . . . . Highest Temperature 415 | . 232 131 415 Average Temperature 88 | . 72 48 98 Received Heat Transfer 1119 | . 33 96 990 Effects 1 | . . . 1 Interference 1 | . . . 1 Siege Activations . | . . . . Martial Activations . | . . . . Shielding Activations . | . . . . Robots Disrupted . | . . . . Combat Hostiles . | . . . . Robots Corrupted . | . . . . Combat Hostiles . | . . . . Parts Fried . | . . . . Impact Corruptions . | . . . . Robots Melted . | . . . . Combat Hostiles . | . . . . Parts Melted . | . . . . Heat Transferred 1405 | . 100 70 1235 Parts Sabotaged . | . . . . Parts Stolen . | . . . . Parts Stripped . | . . . . Power Chain Reactions . | . . . . Alert | -11 -10 -9 -8 ------- Run | Yrd Mat Mat Mat Maximum Alert Level 2 | . 1 1 2 Low Security (%) 62 | 100 92 47 46 Level 1 28 | . 7 52 30 Level 2 8 | . . . 22 Level 3 . | . . . . Level 4 . | . . . . Level 5 . | . . . . High Security . | . . . . Max Security . | . . . . Peak Influence 430 | . 212 341 430 Initial 133 | . . 70 133 Average 186 | . 119 190 253 Influence Increases 1593 | . 399 495 699 Destroy 0b10 Robot/C 760 | . 140 260 360 Destroy 0b10 Robot/NC 145 | . 40 65 40 Destroy Leader 144 | . 34 56 54 Disable Machine 210 | . 75 15 120 Destroy Structure 304 | . 110 99 95 Lose Combat Pursuer 30 | . . . 30 Influence Decreases 1211 | . 232 345 634 Entered New Map 281 | . . 97 184 Time Decay 760 | . 212 238 310 Lost Part 170 | . 20 10 140 Squads Dispatched 6 | . . 3 3 Investigation 2 | . . 2 . Extermination . | . . . . Reinforcement 4 | . . 1 3 Assault . | . . . . Garrison . | . . . . Intercept . | . . . . Searches Triggered . | . . . . Construction Impeded 2 | . . . 2 Haulers Reinforced . | . . . . Active Scanning Responses . | . . . . Cargo Convoy Interrupts . | . . . . Stealth | -11 -10 -9 -8 --------- Run | Yrd Mat Mat Mat Distress Signals 8 | . 2 2 4 Communications Jammed . | . . . . Distress Signals . | . . . . Times Spotted 59 | . 11 21 27 Peak Tracking Total 7 | . 3 4 7 Tactical Retreats 2 | . . . 2 Traps | -11 -10 -9 -8 ------- Run | Yrd Mat Mat Mat Traps Triggered 4 | . 1 2 1 Indirectly . | . . . . Trap Hack Attempts . | . . . . Triggered . | . . . . Disarmed . | . . . . Reprogrammed . | . . . . Reused . | . . . . Traps Extracted . | . . . . Installed . | . . . . Triggered . | . . . . Machines | -11 -10 -9 -8 ---------- Run | Yrd Mat Mat Mat Machines Disabled 14 | . 5 1 8 Max in Single Turn 4 | . 2 1 4 Machines Repaired . | . . . . Machines Dismantled . | . . . . Machines Sabotaged . | . . . . Overloaded Fab Kills . | . . . . Hacking | -11 -10 -9 -8 --------- Run | Yrd Mat Mat Mat Machines Accessed 1 | . . 1 . Terminals . | . . . . Fabricators . | . . . . Repair Stations . | . . . . Recycling Units . | . . . . Scanalyzers 1 | . . 1 . Garrison Access . | . . . . Total Hacks 2 | . . 2 . Successful 2 | . . 2 . Failed . | . . . . Catastrophic . | . . . . Database Lockouts . | . . . . Manual . | . . . . Terminals . | . . . . Fabricators . | . . . . Repair Stations . | . . . . Recycling Units . | . . . . Scanalyzers 2 | . . 2 . Garrison Access . | . . . . Terminal Hacks . | . . . . Fabricator Hacks . | . . . . Repair Station Hacks . | . . . . Recycling Unit Hacks . | . . . . Scanalyzer 2 | . . 2 . Insert Component 1 | . . 1 . Analyze 1 | . . 1 . Garrison Access Hacks . | . . . . Unauthorized Hacks . | . . . . Terminals . | . . . . Fabricators . | . . . . Repair Stations . | . . . . Recycling Units . | . . . . Scanalyzers . | . . . . Garrison Access . | . . . . Data Cores Recovered . | . . . . Used . | . . . . Hacking Detections 1 | . . 1 . Full Trace Events . | . . . . Feedback Events . | . . . . Feedback Blocked . | . . . . Robot Schematics Acquired . | . . . . Robots Built . | . . . . Authchips . | . . . . Time . | . . . . Total Robot Build Rating . | . . . . Part Schematics Acquired 1 | . . 1 . Parts Built . | . . . . Authchips . | . . . . Time . | . . . . Total Part Build Rating . | . . . . Parts Repaired . | . . . . Time . | . . . . Parts Recycled . | . . . . Recycled Matter . | . . . . Retrieved Matter . | . . . . Retrieved Components . | . . . . Parts Scanalyzed 1 | . . 1 . Part Schematics Acquired 1 | . . 1 . Parts Damaged . | . . . . Bothacking | -11 -10 -9 -8 ------------ Run | Yrd Mat Mat Mat Used RIF Installer . | . . . . Robots Hacked . | . . . . Non-combat . | . . . . Combat . | . . . . Robot Hacks Applied . | . . . . Relay Couplers Released . | . . . . Fabnet Peak Effective % . | . . . . Robots Rewired . | . . . . Allies Hacked . | . . . . Hacks Repelled . | . . . . Allies | -11 -10 -9 -8 -------- Run | Yrd Mat Mat Mat Total Allies . | . . . . Largest Group . | . . . . Highest-Rated Group . | . . . . Highest-Rated Ally . | . . . . Total Orders . | . . . . Ally Attacks . | . . . . Total Damage . | . . . . Kills . | . . . . Allies Corrupted . | . . . . Allies Melted . | . . . . Intel | -11 -10 -9 -8 ------- Run | Yrd Mat Mat Mat Active Infowar (turns) . | . . . . Robot Analysis Total . | . . . . Derelict Logs Recovered . | . . . . Drone Launches . | . . . . Drone Recoveries . | . . . . Exploration | -11 -10 -9 -8 ------------- Run | Yrd Mat Mat Mat Turns Passed 1824 | 56 566 518 684 Spaces Moved 805 | 35 257 299 214 Core 39 | 9 . . 30 Treads 316 | 26 257 33 . Legs 450 | . . 266 184 Wheels . | . . . . Hover . | . . . . Flight . | . . . . Fastest Speed 50 | 50 160 90 180 Average Speed 169 | 131 192 120 217 Slowest Speed 500 | 160 240 270 500 Overloaded Moves . | . . . . Propulsion Burnouts . | . . . . Robots Hopped . | . . . . Potential Cave-ins 2 | . 2 . . Cave-ins Triggered 1 | . 1 . . Exploration Rate (%) 23 | 3 37 30 25 Regions Visited 3 Branch Regions . Pre-discovered Areas . | . . . . Known Exits Taken . | . . . . Unknown Exits Taken 3 | 1 1 1 . Scrap Searched . | . . . . Spaces Dug 13 | . 13 . . Terrain Destroyed 336 | . 122 110 104 Melee . | . . . . Projectile 1 | . . . 1 AOE 335 | . 122 110 103 Terrain Rammed . | . . . . Walls Destroyed . | . . . . Machines Disabled . | . . . . Actions | -11 -10 -9 -8 --------- Run | Yrd Mat Mat Mat Total 1046 | 45 297 383 321 Wait 28 | 5 6 10 7 Move 801 | 34 255 298 214 Hop . | . . . . Pick Up 26 | 3 7 10 6 Fast Attach . | . . . . Attach 32 | 3 4 10 15 Detach 9 | . 1 4 4 Swap 7 | . 1 6 . Drop 2 | . . 1 1 Fire 140 | . 22 44 74 Melee . | . . . . Ram . | . . . . Kick . | . . . . Crush . | . . . . Escape Stasis 1 | . 1 . . Rewire . | . . . . Trap . | . . . . Miscellaneous . | . . . . Route ------- -11/Scrapyard -10/Materials (discovered 2 exits: *Mat / [*Sub]) -9/Materials -8/Materials (discovered 1 exit: [*Sto]) History --------- Turn | Location | Event 3 | -11/Scrapyard | Discovered new exit (range 15) 57 | -11/Scrapyard | Entered Materials 190 | -10/Materials | Discovered new exit (range 13) 266 | -10/Materials | Crushed by falling debris 267 | -10/Materials | Core integrity fell below 50% 316 | -10/Materials | Build established: Mutant 442 | -10/Materials | Discovered new exit (range 6) 522 | -10/Materials | Core integrity fell below 20% 623 | -10/Materials | Entered another Materials area 623 | -9/Materials | Evolved 2 slots: Propulsion x1, Utility x1 1102 | -9/Materials | Discovered new exit (range 12) 1141 | -9/Materials | Entered another Materials area 1141 | -8/Materials | Evolved 2 slots: Utility x1, Weapon x1 1600 | -8/Materials | Lost 6 parts (2n1u3w) 1635 | -8/Materials | Core integrity fell below 50% 1689 | -8/Materials | Lost 4 parts (1n3w) 1812 | -8/Materials | Core integrity fell below 20% 1823 | -8/Materials | Discovered new exit (range 6) 1825 | -8/Materials | Destroyed by G-50 Soldier with Heavy Laser Last Messages --------------- K-01 Serf collects debris. U-05 Engineer lays Concrete. R-06 Scavenger collects Med. Storage Unit. U-05 Engineer lays Concrete. R-06 Scavenger collects Imp. VTOL Module. U-05 Engineer lays Concrete. K-01 Serf collects debris. U-05 Engineer lays Concrete. U-05 Engineer builds a Wall. Critical hit (Burn: +37). Spread Laser destroyed. Critical hit (Burn: +37). Electrolysis Chamber disabled. Rocket Launcher destroyed. Destroyed Rocket Launcher. Authchip [Device] destroyed. Destroyed Authchip [Device]. EXIT=FOUND Rocket Launcher destroyed. Destroyed Rocket Launcher. Map ----- +----------------------------------------------------+ | ?????????????????????# + ""T"" #????? | | ?????????????????????! ######### ^ #????? | | ???????????????????????????????# % % #????? | | ?????????????????????????????#### #= #????? | | ???????????????????????????### # """ #????? | | ???????????????????????????# #| " "" #????? | | ???????????????????????????# #% "" #????? | | ????????????????????????#### ! #% #????? | | ????????????????????? + [ # #????? | | ???????????????????????????# # # !### #????? | | ???????????????????????????# [ # %#* # #????? | | ???????????????????????????######/# # # ?????? | | ??????????????????????######??# # + *# ?????? | | ??????????????????????# ## % # #??????? | | ??????????????????????# # % # #??????? | | ??????????????????????# ######??????? | | ??????????????????????# # ##+#####???????? | | ??????????????????????# ? # # [ ##??????? | | ??????????????????????# # #??????? | | ????????????????????????????# # " ##??????? | | ????????????????????????????## "R" #???????? | | ???????????????????????####?## """ #???????? | | ??????????????????????## ## #+# # #???????? | | ??????????????????????# g g # ########???????? | | ??????????????????????# # ?????????????? | | ??????????????????????# @ + ????????????? | | ??????????????????????## g # ???????????? | | ?????????????????????? ## ??????????? | | ????????????????????? ## ?????????? | | ???????????????????? < ###?+#######????????? | | ??????????????????# ## #??? ???????????????? | | ??????????????????# ??####??? ???????????????? | | ??????????????????## #????????? ???????????????? | | ???????????????????# ?????????? ???????????????? | | ???????????????????# ?????????? ???????????????? | | ???????????????????# ???????????????????????????? | | ???????????????????# ???????????????????????????? | | ???????????????????# ???????????????????????????? | | ???????????????????# ????????????????????????????? | | ?????????????????????????????????????????????????? | | ?????????????????????????????????????????????????? | | ?????????????????????????????????????????????????? | | ?????????????????????????????????????????????????? | | ?????????????????????????????????????????????????? | | ?????????????????????????????????????????????????? | | ?????????????????????????????????????????????????? | | ?????????????????????????????????????????????????? | | ?????????????????????????????????????????????????? | | ?????????????????????????????????????????????????? | | ?????????????????????????????????????????????????? | +----------------------------------------------------+ Best States ------------- Heat Dissipation 31 Energy Generation 14 Energy Capacity 280 Matter Stores 300 Matter Capacity 300 Sight Range 16 Terrain Scan Density 10 Armor Coverage 150 Resistance: KI 20 Evasion (%) 57 Recoil Reduction 2 Authchip Count 1 Item Schematics ----------------- VSS Leg | -9/Materials | Scanalyzed Robot Schematics ------------------ None Fabricated ------------ Nothing Repaired ---------- Nothing Alien Tech Used ----------------- None Achievements -------------- None Challenges ------------ None Game ------ Seed SniperDamperJetlance Manual? 0 Play Time 00:16:52 Cumulative 70.0 hours Start 2025.07.30 @ 09:20:34 End 2025.07.30 @ 09:35:21 Sessions 1 Manual Loads 0 Difficulty Rogue Special Mode None Game No. 291 Rogue 291 Adventurer 0 Explorer 0 Win Type - Total 0 Types 0/0/0/0/0/0/0/0/0/0 Lore% 21 Gallery% 31 Achievement% 26 Wizard Run 0 Options --------- Layout 2 ASCII 0 Keyboard 0 Movement Mouse Keybinds 0 Fullscreen 1 Font 24/Smallcaps Map View 50x44 Zoom Use 0% Tactical HUD 0 Map Filters NONE Filters NONE Steam 1 RUN: dc96fdbb-0690-4cc7-b8a5-0f02aca39f89